{"text_format":"3","workbook":"xlsx","n_sheets":5,"sheets":["Дневной рацион, Дети до 3 лет, ","дети 1-3","дети старше 3 лет","дети с пищевой аллергией","дети с ОВЗ"],"read":"whole","date_system":"1900"}

{"sheet":"Дневной рацион, Дети до 3 лет, ","index":0,"n_rows":27,"n_cols":11,"rows_kept":27,"merged":[[0,1,0,3],[0,6,0,8]]}
["Учреждение","МКДОУ д/с № 504 8.12.2022",null,null,"Отд./корп",{"$nulls":4},"День",4]
["Прием пищи","Раздел","№ рец.","Блюдо","Выход","Калорийность","Белки","Жиры","Углеводы"]
["ЗАВТРАК"]
[null,"Горячие блюда (каши, запеканки и т.д)","270","Каша молочная пшеничная жидкая","150г",911.25,27.75,28.05,136.875]
[null,"Бутерброды","99","Бутерброд с маслом ","34г",191.372,1.555,0.098,9.715]
[null,"Напитки","117","Какао с молоком","150г",115,1.8,3,17.9]
["Общая стоимость"]
["ЗАВТРАК № 2"]
["Общая стоимость"]
["О Б Е Д"]
[null,"Первые блюда (Супы)","149","Суп картофельный с горохом","150г",64.8,1.38,2.55,9.075]
[null,"Вторые блюда","349","Рыба -горбуша, тушеная в томате с овощами ","120г",122.572,11.4,6.172,5.4]
[null,"Гарниры","434","Картофельное пюре","110г",101.2,2.31,4.84,11.99]
[null,null,"527","Компот из смеси сухофруктов","150г",82.5,0.375,0,20.25]
[{"$nulls":3},"Хлеб бородинский","50г",0,0,0,0]
[null,null,"114","Хлеб пшеничный","15г",35.25,105.9,0.12,7.38]
["Общая стоимость"]
["ПОЛДНИК"]
[null,"Бутерброды","101","Батон с повидлом","45г",176,1.7,4.3,32.6]
[null,null,"534","Молоко кипяченое","150г",79.5,4.35,3.75,7.2]
["Общая стоимость"]
["У Ж И Н"]
[null,"Горячие блюда (каши, запеканки и т.д)","307","Омлет натуральный","80г",130.462,6.893,10.708,1.847]
[null,"Напитки","132","Чай с сахаром","150г",45,0,0,8.5]
[null,null,"114","Хлеб пшеничный","30г",70.5,211.8,0.24,14.76]
["Общая стоимость"]
["Общая стоимость дневного рациона"]

{"sheet":"дети 1-3","index":1,"n_rows":23,"n_cols":9,"rows_kept":23,"merged":[[0,1,0,3],[0,6,0,8]]}
["Учреждение","МКДОУ Тогучинского района \" Тогучинский д/с № 2\"",{"$nulls":4},"День 8"]
["Прием пищи","№ рец.","Блюдо","Выход","Цена","Калорийность","Белки","Жиры","Углеводы"]
["ЗАВТРАК"]
[null,"54-23к","каша молочная пшеничная жидкая","141г",null,147,4.8,4.1,23]
[null,97,"Бутерброд с маслом,сыром","31г",null,105,4.3,3.3,6.3]
[null,"54-21гн","какао с молоком","180г",null,90,4.2,3.2,11.4]
[]
["2-ой завтрак ","пром.","сок фруктовый","100г",null,38,0,0,10]
["О Б Е Д"]
[null,"54-7с","Суп картофельный с макаронными изд. на кур./б","150г",null,90,3.9,2.1,13.9]
[null,"54-27м","рагу из курицы","150г",null,163,15.6,5.3,13.3]
[null,"54-13з","салат из отварной свёклы","30г",null,23,0.4,1.4,2.3]
[null,"54-7хн","Компот из быстрозамороженной  фруктов(абрикос,слива)","150г",null,27,0.2,0.1,6.3]
[null,"пром.","Хлеб пшеничный","12г",null,28,0.9,0.1,6]
[null,"пром.","Хлеб ржаной","12г",null,21,0.8,0.1,4]
["ПОЛДНИК"]
[null,"№547","блины","100г",null,261,7.5,12.4,30]
[null,"54-23гн","Кофейный напиток с молоком","150г",null,64,2.9,2.2,8.5]
[]
["ужин "]
[null,"54-6с","суп картофельный с клёцками на кур./б.","150г",null,70,3.5,2.5,8.9]
[null,"54-13хн","Напиток из шиповника","180г",null,59,0.6,0.2,14]
[null,"пром.","Хлеб пшеничный","15г",null,35,1.1,0.1,7.5]

{"sheet":"дети старше 3 лет","index":2,"n_rows":22,"n_cols":9,"rows_kept":22,"merged":[[0,1,0,3],[0,6,0,8]]}
["Учреждение","МКДОУ Тогучинского района \" Тогучинский д/с № 2\"",{"$nulls":4},"день 8"]
["Прием пищи","№ рец.","Блюдо","Выход","Цена","Калорийность","Белки","Жиры","Углеводы"]
["ЗАВТРАК"]
[null,"54-23к","каша молочная пшеничная жидкая","166г",null,173,5.7,4.8,27]
[null,97,"Бутерброд с маслом,сыром","35г",null,123,5,3.9,7.4]
[null,"54-21гн","какао с молоком","200г",null,100,4.6,3.6,12.6]
[]
["О Б Е Д"]
[null,"54-7с","Суп картофельный с макаронными изд. на кур./б","200г",null,120,5.2,2.8,18.5]
[null,{"$f":"'дети 1-3'!B11","v":"54-27м"},{"$f":"'дети 1-3'!C11","v":"рагу из курицы"},"180г",null,196,18.7,6.4,16]
[null,{"$f":"'дети 1-3'!B12","v":"54-13з"},{"$f":"'дети 1-3'!C12","v":"салат из отварной свёклы"},"40г",null,31,0.5,1.9,3.1]
[null,"54-7хн","Компот из быстрозамороженной  фруктов(абрикос,слива)","180г",null,35,"0.3",0.1,8.4]
[null,"пром.","Хлеб пшеничный","20г",null,47,1.5,0.2,10]
[null,"пром.","Хлеб ржаной","15г",null,26,1,0.2,5]
["ПОЛДНИК"]
[null,"№547","блины","100г",null,261,7.5,12.4,30]
[null,"54-23гн","Кофейный напиток с молоком","200г",null,86,3.8,2.9,11.3]
[]
["ужин "]
[null,"54-6с",{"$f":"'дети 1-3'!$C$21","v":"суп картофельный с клёцками на кур./б."},"180г",null,84,4.2,4.2,10]
[null,"54-13хн","Напиток из шиповника","200г",null,65,0.6,0.2,15.2]
[null,"пром.","Хлеб пшеничный","20г",null,47,1.5,0.2,10]

{"sheet":"дети с пищевой аллергией","index":3,"n_rows":22,"n_cols":9,"rows_kept":22,"merged":[[0,1,0,3],[0,6,0,8]]}
["Учреждение","МКДОУ Тогучинского района \" Тогучинский д/с № 2\"",{"$nulls":4},"день 8"]
["Прием пищи","№ рец.","Блюдо","Выход","Цена","Калорийность","Белки","Жиры","Углеводы"]
["ЗАВТРАК"]
[null,"54-15к","каша безмолочная пшеничная вязкая с курагой","166г",null,230,6.8,7.3,34]
[null,99,"Бутерброд с маслом","34г",null,167,1.4,14,8.6]
[null,"54-2гн","чай с сахаром","200г",null,24,0.2,0,5.9]
[]
["О Б Е Д"]
[null,"54-7с","Суп картофельный с макаронными изд. на кур./б","200г",null,120,5.2,2.8,18.5]
[null,{"$f":"'дети старше 3 лет'!B10","v":"54-27м"},{"$f":"'дети старше 3 лет'!C10","v":"рагу из курицы"},{"$f":"'дети старше 3 лет'!D10","v":"180г"},{"$f":"'дети старше 3 лет'!E10","v":0},{"$f":"'дети старше 3 лет'!F10","v":196},{"$f":"'дети старше 3 лет'!G10","v":18.7},{"$f":"'дети старше 3 лет'!H10","v":6.4},{"$f":"'дети старше 3 лет'!I10","v":16}]
[null,{"$f":"'дети старше 3 лет'!B11","v":"54-13з"},{"$f":"'дети старше 3 лет'!C11","v":"салат из отварной свёклы"},{"$f":"'дети старше 3 лет'!D11","v":"40г"},{"$f":"'дети старше 3 лет'!E11","v":0},{"$f":"'дети старше 3 лет'!F11","v":31},{"$f":"'дети старше 3 лет'!G11","v":0.5},{"$f":"'дети старше 3 лет'!H11","v":1.9},{"$f":"'дети старше 3 лет'!I11","v":3.1}]
[null,"54-7хн","Компот из быстрозамороженной  фруктов(абрикос,слива)","180г",null,35,"0.3",0.1,8.4]
[null,"пром.","Хлеб пшеничный","20г",null,47,1.5,0.2,10]
[null,"пром.","Хлеб ржаной","15г",null,26,1,0.2,5]
["ПОЛДНИК"]
[null,"пром.","сок фруктовый","200г",null,76,0,0,19]
[null,"пром.","хлеб пшеничный","50г",null,118,3.4,0.5,25]
[]
["ужин "]
[null,{"$f":"'дети старше 3 лет'!B20","v":"54-6с"},{"$f":"'дети старше 3 лет'!C20","v":"суп картофельный с клёцками на кур./б."},{"$f":"'дети старше 3 лет'!D20","v":"180г"},null,{"$f":"'дети старше 3 лет'!F20","v":84},{"$f":"'дети старше 3 лет'!G20","v":4.2},{"$f":"'дети старше 3 лет'!H20","v":4.2},{"$f":"'дети старше 3 лет'!I20","v":10}]
[null,"54-13хн","Напиток из шиповника","200г",null,65,0.6,0.2,15.2]
[null,"пром.","Хлеб пшеничный","20г",null,47,1.5,0.2,10]

{"sheet":"дети с ОВЗ","index":4,"n_rows":21,"n_cols":10,"rows_kept":21,"merged":[[7,2,7,4],[7,7,7,9]]}
{"$rows_empty":7}
[null,"Учреждение","МКДОУ Тогучинского района \" Тогучинский д/с № 2\"",{"$nulls":4},"день 8"]
[null,"Прием пищи","№ рец.","Блюдо","Выход","Цена","Калорийность","Белки","Жиры","Углеводы"]
[null,"ЗАВТРАК"]
[null,null,"54-23к","каша молочная пшеничная жидкая","166г",null,173,5.7,4.8,27]
[null,null,97,"Бутерброд с маслом,сыром","45г",null,158,6.4,5,9.5]
[null,null,"54-21гн","какао с молоком","200г",null,100,4.6,3.6,12.6]
[]
[null,"О Б Е Д"]
[null,null,"54-7с","Суп картофельный с макаронными изд. на кур./б","200г",null,120,5.2,2.8,18.5]
[null,null,{"$f":"'дети старше 3 лет'!B10","v":"54-27м"},{"$f":"'дети старше 3 лет'!C10","v":"рагу из курицы"},{"$f":"'дети старше 3 лет'!D10","v":"180г"},null,{"$f":"'дети старше 3 лет'!F10","v":196},{"$f":"'дети старше 3 лет'!G10","v":18.7},{"$f":"'дети старше 3 лет'!H10","v":6.4},{"$f":"'дети старше 3 лет'!I10","v":16}]
[null,null,{"$f":"'дети старше 3 лет'!B11","v":"54-13з"},{"$f":"'дети старше 3 лет'!C11","v":"салат из отварной свёклы"},{"$f":"'дети старше 3 лет'!D11","v":"40г"},null,{"$f":"'дети старше 3 лет'!F11","v":31},{"$f":"'дети старше 3 лет'!G11","v":0.5},{"$f":"'дети старше 3 лет'!H11","v":1.9},{"$f":"'дети старше 3 лет'!I11","v":3.1}]
[null,null,"пром.","сок фруктовый","200г",null,76,0,0,19]
[null,null,"пром.","Хлеб пшеничный","20г",null,47,1.5,0.2,10]
[null,null,"пром.","Хлеб ржаной","20г",null,43,1.3,0.2,8.3]